Cogmind - Beta 16 @@@ ROGUE MODE // 2026.01.21 @ 12:41:32 Player: monistgf Result: Escaped! Performance ------------- Evolutions (9) 4500 Regions Visited (26) 5200 Robots Destroyed (177) 885 Value Destroyed (7094) 7094 Prototype IDs (47) 940 Alien Tech Used (0) 0 Bonus (11694) 11694 TOTAL SCORE: 30313 Bonus ------- High Alert Combat Kills 423 Follower Combat Kills 1821 Network Hubs Disabled 600 Met Data Miner 300 Met Warlord at Base 500 MAIN.C Attacked Warlord 500 Built Enhanced Grunts 300 A7 Reached Mainframe 300 Met Warlord at Research 2000 Invited to Help at Command 2000 Win 3000 Friendly Fire -50 Cogmind --------- Core Integrity 544/1600 Matter 94/300 Energy 98/100 System Corruption 14% Temperature Cool (0) Movement Core (50) Location To Epsilon Eridani Parts ------- > --- POWER (2) -------- (None) > --- PROPULSION (6) --- (None) > --- UTILITY (15) ----- Advanced Visual Processing Unit Advanced Target Analyzer Advanced Transmission Jammer System Mapper Advanced System Shield > --- WEAPON (2) ------- Nanosword > --- INVENTORY (5) ---- Combat Linear Gravjet Advanced Cooling System Enhanced Nova Cannon Enhanced Hardcell Cannon Z-bomb Delivery System Peak State ------------ > --- POWER ------------ Light Particle Reactor Quantum Reactor > --- PROPULSION ------- Cooled Gravmag System Cooled Antigrav System Antigrav Array Combat Linear Gravjet Combat Linear Gravjet > --- UTILITY ---------- Advanced Cooling System Large Storage Unit Advanced Visual Processing Unit Advanced Sensor Array Improved Targeting Computer Advanced Target Analyzer Experimental Target Analyzer Experimental Core Analyzer Advanced Transmission Jammer Improved Phase Shifter Light Regenerative Plating Advanced Hacking Suite System Mapper Advanced System Shield Ghost Barrier > --- WEAPON ----------- Helical Railgun Helical Railgun > --- INVENTORY -------- Quantum Reactor Combat Gravmag System Cooled Antigrav System Combat Linear Gravjet Advanced Cooling System Centrium Light Armor Plating Improved System Shield Helical Railgun Enhanced Hardcell Cannon Fusion Bomb Launcher Z-bomb Delivery System Nanosword [Rating: 188] Favorites ----------- Power Micro Fission Core Engine Ion Engine Power Core Micro Fission Core Reactor Light Particle Reactor Propulsion Antigrav System Treads Light Treads Leg Aluminum Leg Wheel Compact Wheel Hover Unit Antigrav System Utility Machine Analyzer Device Advanced Sensor Array Storage Medium Storage Unit Processor Machine Analyzer Hackware Advanced Hacking Suite Protection Light Regenerative Plating Weapon Phasing Sabre Energy Gun Small Laser Ballistic Gun Helical Railgun Ballistic Cannon Mass Driver Launcher Z-bomb Delivery System Impact Weapon Hammer Slashing Weapon Phasing Sabre Piercing Weapon Lance Build | -11 -10 -10 -10 -9 -8 -8 -7 -6 -6 -6 -6 -5 -5 -5 -5 -5 -5 -4 -4 -4 -4 -3 -3 -3 -2 -1 ------- Run | Yrd Mat Min Exi Min Mat Sto Fac Fac Low Low Dat Pro Fac Ext Cet Arc Hub Fac Upp Upp War Pro Res Tes Res Acc Slots Evolved 18 | . . . . . 4 . 2 2 . . . . 2 . . . . 2 . . . . 2 . 2 2 Power 1 | . . . . . . . . . . . . . 1 . . . . . . . . . . . . . Propulsion 4 | . . . . . 1 . 2 1 . . . . . . . . . . . . . . . . . . Utility 13 | . . . . . 3 . . 1 . . . . 1 . . . . 2 . . . . 2 . 2 2 Weapon . | . . . . . . . . . . . . . . . . . . . . . . . . . . . Parts Attached 192 | . 4 7 . 1 12 11 13 24 1 1 . 1 10 17 3 6 3 5 1 . 9 2 27 8 15 11 Power 24 | . . . . . 1 2 1 3 . . . . 1 3 . . . . . . 4 . 4 1 2 2 Engine 3 | . . . . . . . 1 2 . . . . . . . . . . . . . . . . . . Core 8 | . . . . . 1 2 . 1 . . . . 1 3 . . . . . . . . . . . . Reactor 13 | . . . . . . . . . . . . . . . . . . . . . 4 . 4 1 2 2 Propulsion 62 | . 2 . . . 5 2 4 13 . . . . 5 1 1 4 2 2 1 . 3 . 8 1 5 3 Treads 10 | . . . . . 3 2 2 2 . . . . . . . 1 . . . . . . . . . . Leg 1 | . . . . . . . . 1 . . . . . . . . . . . . . . . . . . Wheel 10 | . 2 . . . 2 . 2 4 . . . . . . . . . . . . . . . . . . Hover 41 | . . . . . . . . 6 . . . . 5 1 1 3 2 2 1 . 3 . 8 1 5 3 Flight . | . . . . . . . . . . . . . . . . . . . . . . . . . . . Utility 63 | . 2 2 . . 3 5 2 7 1 1 . . 2 10 1 1 . 3 . . 1 1 8 3 6 4 Device 22 | . . 2 . . 1 1 . 2 . 1 . . 1 4 . . . . . . 1 1 3 . 5 . Storage 5 | . 1 . . . . 1 . 1 . . . . . . . . . 1 . . . . 1 . . . Processor 9 | . . . . . . 1 . 1 1 . . . . . . . . . . . . . 3 1 1 1 Hackware 11 | . . . . . . . . 2 . . . . 1 2 . 1 . 1 . . . . 1 . . 3 Protection 16 | . 1 . . . 2 2 2 1 . . . . . 4 1 . . 1 . . . . . 2 . . Artifact . | . . . . . . . . . . . . . . . . . . . . . . . . . . . Weapon 43 | . . 5 . 1 3 2 6 1 . . . 1 2 3 1 1 1 . . . 1 1 7 3 2 2 Energy Gun . | . . . . . . . . . . . . . . . . . . . . . . . . . . . Energy Cannon . | . . . . . . . . . . . . . . . . . . . . . . . . . . . Ballistic Gun 22 | . . 2 . 1 3 1 3 1 . . . . . 2 1 1 1 . . . 1 . 2 1 2 . Ballistic Cannon 5 | . . . . . . . . . . . . 1 1 . . . . . . . . . 2 . . 1 Launcher 7 | . . 3 . . . . 1 . . . . . . . . . . . . . . 1 1 1 . . Special Weapon . | . . . . . . . . . . . . . . . . . . . . . . . . . . . Impact Weapon 1 | . . . . . . 1 . . . . . . . . . . . . . . . . . . . . Slashing Weapon 4 | . . . . . . . 1 . . . . . . 1 . . . . . . . . . 1 . 1 Piercing Weapon 4 | . . . . . . . 1 . . . . . 1 . . . . . . . . . 2 . . . Special Melee Weapon . | . . . . . . . . . . . . . . . . . . . . . . . . . . . Unidentified Prototypes 17 | . . 1 . . . 1 . . . . . . . . 1 . . . . . 2 . 4 3 3 2 Parts Lost 76 | . . . . . 4 3 8 8 1 . . . . 4 3 . 4 1 . 1 . 2 3 1 1 32 Power 9 | . . . . . . 1 . 1 . . . . . . . . . . . . . 2 . . . 5 Propulsion 31 | . . . . . 3 1 4 3 . . . . . 1 2 . 4 1 . 1 . . 1 . . 10 Utility 28 | . . . . . 1 1 3 3 1 . . . . 3 . . . . . . . . 1 1 1 13 Weapon 8 | . . . . . . . 1 1 . . . . . . 1 . . . . . . . 1 . . 4 Highest Loss Streak 20 | . . . . . 2 2 6 3 1 . . . . 2 3 . 3 1 . 1 . 1 1 1 1 20 To Critical Strikes 1 | . . . . . . . . . . . . . . . . . . . . . . . . . . 1 Average Backups 13 | . 8 16 17 17 16 19 19 17 10 10 10 10 9 9 9 9 9 8 9 9 9 9 13 14 14 8 Power 1 | . 1 1 1 1 1 . 1 1 1 1 1 1 1 1 1 1 1 1 1 1 1 . . 1 1 . Propulsion 2 | . 4 4 3 3 1 2 2 2 1 1 1 1 1 1 . 1 1 . . . . 1 2 3 4 2 Utility 4 | . 1 3 5 5 4 6 6 4 4 4 5 4 3 2 3 4 4 4 5 5 5 6 6 6 4 2 Weapon 5 | . 2 7 8 8 9 9 9 8 4 3 3 3 4 4 4 3 3 3 3 3 2 2 3 4 5 4 Tool/Special . | . . . . . . . . . . . . . . . . . . . . . . . . . . . Unused Backups 42 | . 3 2 . 2 2 7 . 7 . 2 . 1 2 . . 3 1 . . . 3 . 2 1 2 2 Power 5 | . 1 . . . 1 . . . . . . . . . . . . . . . 1 . 1 . 1 . Propulsion 6 | . . 2 . . . . . 2 . . . . . . . 1 . . . . . . 1 . . . Utility 18 | . . . . 1 . 4 . 3 . 1 . 1 2 . . 1 1 . . . 1 . . 1 1 1 Weapon 13 | . 2 . . 1 1 3 . 2 . 1 . . . . . 1 . . . . 1 . . . . 1 Tool/Special . | . . . . . . . . . . . . . . . . . . . . . . . . . . . Average Slot Usage (%) 95 | . 99 100 100 100 88 96 97 87 99 100 100 100 98 98 94 98 100 90 99 94 97 99 97 99 96 76 Engine 2 | . 14 14 14 14 . . 5 5 . . . . . . . . . . . . . . . . . . Core 4 | . . . . . 8 9 1 . 6 6 6 6 9 11 11 11 11 10 10 10 5 . . . . . Reactor 2 | . . . . . . . . . . . . . . . . . . . . . 4 9 8 9 8 5 Treads 3 | . . . . . 12 16 22 10 . . . . . . . . . . . . . . . . . . Wheel 5 | . 15 28 28 28 14 10 13 12 . . . . . . . . . . . . . . . . . . Hover 19 | . . . . . . . . 6 40 40 40 40 35 35 29 32 35 25 30 26 29 31 28 28 22 16 Device 11 | . . 6 14 14 18 18 14 6 1 4 6 6 6 16 17 13 11 10 10 10 10 10 8 8 12 9 Storage 6 | . 14 14 14 14 9 9 7 6 6 6 6 6 5 5 5 5 5 5 5 5 5 5 4 4 4 3 Processor 8 | . . . . . . 6 7 7 17 14 13 13 11 5 5 5 5 5 5 5 5 5 14 18 18 18 Hackware 7 | . . . . . . . . 6 6 6 6 6 9 4 5 9 11 14 15 15 15 15 16 14 13 12 Protection 6 | . 13 7 . . 8 9 6 8 6 6 6 6 5 4 5 5 5 7 10 10 10 9 4 4 6 3 Ballistic Gun 8 | . 14 21 28 28 18 15 9 10 6 6 6 5 . 5 7 7 4 3 . . . 1 3 4 6 3 Ballistic Cannon 1 | . . . . . . . . . . . . . 5 . . . 1 2 5 5 4 5 1 . . . Slashing Weapon 2 | . . . . . . . . 1 5 5 6 5 2 1 2 3 4 4 4 4 5 3 1 2 1 2 Peak Build Rating 188 | . 8 16 11 12 27 35 36 63 63 64 64 64 84 92 92 95 96 109 108 108 119 120 142 150 172 188 Average Rating 82 | . 7 9 11 11 25 27 30 40 62 63 64 63 75 86 89 93 94 97 106 103 112 117 133 146 166 147 On Entrance 70 | 6 6 8 11 11 12 27 26 33 60 63 64 64 63 84 92 90 93 84 101 107 104 119 110 142 149 172 Avg Prop Armor Cover (%) 9 | . . . . . 7 12 19 11 . . . . . 2 . 6 . . . . . 4 4 . . 7 Naked Turns . | . . . . . . . . . . . . . . . . . . . . . . . . . . . Heaviest Build 87 | 12 50 56 51 52 61 66 69 80 37 33 33 37 43 53 51 50 51 55 57 57 59 59 68 67 87 81 Greatest Support 83 | 20 26 26 26 26 26 26 32 58 58 58 58 58 65 65 64 60 64 67 66 66 70 70 79 79 80 83 Greatest Overweight (x) 6 | . 2 2 1 1 6 4 4 6 . . . . . . . . 1 1 1 . . . . . 1 1 Average Overweight (x) . | . 1 1 1 1 3 2 1 1 . . . . . . . . . . . . . . . . . . Largest Inventory Capacity 20 | . 20 20 20 20 20 20 20 20 10 10 10 10 10 10 10 10 10 10 10 10 10 10 15 15 15 15 Average Capacity 14 | . 19 20 20 20 20 20 20 18 10 10 10 10 10 10 10 10 10 10 10 10 10 10 14 15 15 14 Most Carried 20 | . 12 19 18 20 19 20 20 20 10 10 10 10 10 10 10 10 10 9 9 10 10 10 15 15 15 15 Average Carried 13 | . 8 16 18 18 16 19 19 17 10 9 10 9 9 9 9 9 9 8 9 9 9 9 13 14 14 8 Final Capacity 20 | 8 20 20 20 20 20 20 20 10 10 10 10 10 10 10 10 10 10 10 10 10 10 10 15 15 15 5 Final Carried 20 | 6 12 18 18 19 19 20 20 10 10 10 10 10 9 10 10 10 8 9 9 10 10 10 14 15 15 5 Scrap Suit Usage (%) 4 | . . . . . 56 4 . . . . . . . . . . . . . . . . . . . . Parts Cannibalized 5 | . . . . . 5 . . . . . . . . . . . . . . . . . . . . . Class Distribution -------------------- 39% | Hacker-Mutant 27% | Mutant 16% | Scavenger-Mutant 6% | Commander-Scout 3% | Wizard-Mutant Dominant Class ---------------- Mutant | -10/Materials Mutant | -10/Mines Mutant | -10/Exiles Mutant | -9/Mines Mutant | -8/Materials Scavenger-Mutant | -8/Storage Scavenger-Mutant | -7/Factory Scavenger-Mutant | -6/Factory Mutant | -6/Lower Caves Mutant | -6/Lower Caves Mutant | -6/Data Miner Mutant | -5/Proximity Caves Hacker-Mutant | -5/Factory Commander-Scout | -5/Extension Commander-Scout | -5/Cetus Commander-Mutant | -5/Archives Commander-Mutant | -5/Hub_04(d) Hacker-Mutant | -4/Factory Hacker-Mutant | -4/Upper Caves Hacker-Mutant | -4/Upper Caves Hacker-Mutant | -4/Warlord Hacker-Mutant | -3/Proximity Caves Hacker-Mutant | -3/Research Hacker-Mutant | -3/Testing Hacker-Mutant | -2/Research Hacker-Mutant | -1/Access Resources | -11 -10 -10 -10 -9 -8 -8 -7 -6 -6 -6 -6 -5 -5 -5 -5 -5 -5 -4 -4 -4 -4 -3 -3 -3 -2 -1 ----------- Run | Yrd Mat Min Exi Min Mat Sto Fac Fac Low Low Dat Pro Fac Ext Cet Arc Hub Fac Upp Upp War Pro Res Tes Res Acc Matter Collected 6501 | 154 10 116 . 45 741 464 160 773 81 10 . . 180 501 127 144 94 236 49 27 166 220 466 367 1123 247 Remotely . | . . . . . . . . . . . . . . . . . . . . . . . . . . . Salvage Created 7014 | . 10 42 . 11 708 754 269 737 52 . . 8 180 368 34 317 452 301 53 . . 175 627 367 1034 515 Parts 352 | . 1 5 . 5 34 36 17 32 6 . . 3 9 10 1 19 15 17 5 . . 7 43 15 27 45 Haulers Intercepted 6 | . . . . . 2 . . . . . . . . . . . . . . . . . 2 1 1 . Recyclers Shooed 5 | . . . . . 2 1 . 1 . . . . . . . . . . . . . . . 1 . . Parts Field Recycled . | . . . . . . . . . . . . . . . . . . . . . . . . . . . Retrieved Matter . | . . . . . . . . . . . . . . . . . . . . . . . . . . . Parts Self-Destructed 17 | . . . . . . . . . 5 . . 3 . . . . . . 4 . . 5 . . . . Prevented 2 | . . . . . . . . . . . . . . . . . . . . . . 2 . . . . Parts Restored . | . . . . . . . . . . . . . . . . . . . . . . . . . . . Kills | -11 -10 -10 -10 -9 -8 -8 -7 -6 -6 -6 -6 -5 -5 -5 -5 -5 -5 -4 -4 -4 -4 -3 -3 -3 -2 -1 ------- Run | Yrd Mat Min Exi Min Mat Sto Fac Fac Low Low Dat Pro Fac Ext Cet Arc Hub Fac Upp Upp War Pro Res Tes Res Acc Combat Hostiles Destroyed 130 | . . 11 . . 10 12 6 11 4 . . 2 . 6 1 1 5 . 1 . . 7 14 2 19 18 Melee 6 | . . . . . . . . 2 . . . . . 3 . . . . . . . . . . . 1 Guns 56 | . . . . . 10 12 5 3 1 . . 1 . 3 1 1 . . . . . 2 2 2 9 4 Cannons 1 | . . . . . . . . . . . . . . . . . . . 1 . . . . . . . AOE 66 | . . 11 . . . . 1 6 3 . . 1 . . . . 4 . . . . 5 12 . 10 13 Classes Destroyed 16 | . 1 1 . . 6 2 1 1 . . . . 1 1 . . . . . . . . . . 2 . Worker 17 | . . . . . . 3 . 2 . . . . 1 . . . 6 . . . . . 2 1 . 2 Builder 4 | . . . . . . . . . . . . . 1 . . . . 2 . . . . 1 . . . Tunneler 7 | . 1 2 . 1 1 . . 2 . . . . . . . . . . . . . . . . . . Hauler 6 | . . . . . 2 . . . . . . . . . . . . . . . . . 2 1 1 . Recycler 9 | . . . . . 2 1 . 2 . . . . 1 . . . . 2 . . . . . 1 . . Operator 10 | . . . . . . 1 . . . . . . . 1 . 7 . . . . . . 1 . . . Drone 3 | . . . . . . . . 1 . . . 1 . . . . . . . . . . . . . 1 Watcher 5 | . . . . . . . . . . . . . . 1 . . 1 . . . . . 2 . . 1 Swarmer 50 | . . . . . 2 . 1 6 4 . . 1 . . . . . . . . . 5 12 . 5 14 Grunt 37 | . . . . . 7 7 3 3 . . . . . 5 . . 2 . . . . . . . 10 . Brawler 1 | . . . . . . . . . . . . . . . . . . . . . . . . . 1 . Duelist 1 | . . . . . . . . . . . . . . . . . . . . . . . . . 1 . Sentry 10 | . . . . . 1 3 1 1 . . . . . 1 . 1 . . . . . . . . 2 . Hunter 6 | . . . . . 1 2 . . . . . . . . . . 3 . . . . . . . . . Programmer 12 | . . . . . . . 1 1 . . . . . . . . . . 1 . . 2 2 2 . 3 Cetus Guard 1 | . . . . . . . . . . . . . . . 1 . . . . . . . . . . . Assembled 11 | . . 11 . . . . . . . . . . . . . . . . . . . . . . . . Best Kill Streak 14 | . 1 11 . 1 5 6 2 7 4 . . 2 2 2 1 3 10 2 1 . . 5 8 3 14 5 Combat Bots Only 13 | . . 11 . . 3 5 2 6 4 . . 2 . 2 1 1 5 . 1 . . 5 5 1 13 4 Max Kills in Single Turn 8 | . 1 7 . 1 2 1 1 4 3 . . 1 1 1 1 1 8 1 1 . . 2 4 1 4 5 Gunslinging 1 | . . . . . 1 . . . . . . . . . . . . . . . . . . . 1 . Exploded 7 | . . 7 . . . . 1 3 2 . . 1 . . . . 4 . . . . 2 3 . 4 4 Melee 1 | . . . . . . . . 1 . . . . . 1 . . . . . . . . . . . 1 Uniques/NPCs Destroyed . | . . . . . . . . . . . . . . . . . . . . . . . . . . . Combat | -11 -10 -10 -10 -9 -8 -8 -7 -6 -6 -6 -6 -5 -5 -5 -5 -5 -5 -4 -4 -4 -4 -3 -3 -3 -2 -1 -------- Run | Yrd Mat Min Exi Min Mat Sto Fac Fac Low Low Dat Pro Fac Ext Cet Arc Hub Fac Upp Upp War Pro Res Tes Res Acc Hostile Shots Fired 1143 | . . 26 . . 54 63 175 80 20 3 . 8 14 42 27 9 23 41 2 6 15 40 46 20 36 393 Missed 433 | . . 6 . . 12 13 64 35 5 1 . 3 5 11 15 5 7 24 . 1 4 12 18 6 19 167 Hits 710 | . . 20 . . 42 50 111 45 15 2 . 5 9 31 12 4 16 17 2 5 11 28 28 14 17 226 Melee 1 | . . . . . . . . . . . . . . . . . 1 . . . . . . . . . Projectile 709 | . . 20 . . 42 50 111 45 15 2 . 5 9 31 12 4 15 17 2 5 11 28 28 14 17 226 Critical Strikes 34 | . . . . . 1 . 2 1 1 . . . . 3 5 . . 2 . . . . 1 2 . 16 Actively Blocked 1 | . . . . . . . . . . . . . . . . . . . . . . . . 1 . . Part Disruptions 3 | . . 1 . . . . . . . . . . . . . . . . . . . . . . . 2 Damage Taken 13793 | . . 345 . . 642 763 1216 564 286 76 . 136 216 660 276 108 663 535 37 131 110 697 621 330 514 4867 Core 1698 | . . 101 . . . 32 105 48 16 . . . . 42 12 . 84 24 . . . 23 23 71 61 1056 Absorbed by Shields 183 | . . . . . . . . . . . . . . 25 55 . . . . . 103 . . . . . Redirected to Shielding 101 | . . . . . . . . . . . . . . . . . . . . . . . . 47 54 . Ignored by Resistances 16 | . . . . . . . 12 4 . . . . . . . . . . . . . . . . . . Regen/Repaired (Parts) 1246 | . . . . . 46 . . . . . . . 22 . . . . 681 43 16 75 105 109 47 64 38 Core Remaining (%) 83 | 100 . . . 59 . 94 85 . . . . 92 . . . . 86 . . . . 95 . 92 95 34 Volleys Fired 328 | . 2 11 . 1 44 43 24 15 2 1 . 12 3 25 8 8 6 12 1 . 8 13 18 10 37 24 Largest 2 | . 2 2 . 2 2 2 2 2 2 1 . 1 1 2 2 2 2 2 2 . 1 2 2 2 2 2 Hottest 86 | . 60 66 . 46 50 50 72 53 69 39 . 40 47 58 66 66 68 68 82 . 47 86 73 73 76 76 Shots Fired 572 | . 4 22 . 2 88 86 48 27 4 1 . 12 3 39 13 16 7 13 2 . 8 23 28 21 66 39 Gun 474 | . 4 14 . 2 88 86 46 24 2 . . 7 . 28 10 16 2 2 1 . . 9 21 21 58 33 Cannon 53 | . . . . . . . . . . . . 2 3 11 . . 5 11 1 . 8 11 . . . 1 Launcher 45 | . . 8 . . . . 2 3 2 1 . 3 . . 3 . . . . . . 3 7 . 8 5 Special . | . . . . . . . . . . . . . . . . . . . . . . . . . . . Kinetic 520 | . 2 9 . 2 88 86 46 24 2 . . 9 3 39 10 16 7 13 2 . 8 20 21 21 58 34 Thermal 7 | . 2 5 . . . . . . . . . . . . . . . . . . . . . . . . Explosive 45 | . . 8 . . . . 2 3 2 1 . 3 . . 3 . . . . . . 3 7 . 8 5 Electromagnetic . | . . . . . . . . . . . . . . . . . . . . . . . . . . . Robot Hit Streak 26 | . 3 8 . 6 17 11 26 8 7 . . 1 . 9 4 3 2 1 2 . . 5 7 9 13 3 Robot Miss Streak 6 | . . 3 . . 4 2 2 1 1 . . 3 . 5 2 1 . 1 . . . 2 3 1 6 5 Penetration Max 1 | . . . . . . . . 1 . . . . . . 1 . . . . . . . . . 1 . Secondary Targets 10 | . . . . . 2 2 . 1 . . . . . 1 . . . . . . . . . . 4 . Max Gunslinging Chain 1 | . . . . . 1 1 . 1 . . . . . 1 . . . . . . . . . . 1 . Shots Hit Robots 427 | . 3 14 . 1 61 67 37 32 2 . . 3 4 38 8 22 5 9 1 . . 12 27 21 42 18 Core Hits 327 | . 1 29 . 1 28 29 16 23 4 . . 2 1 13 8 8 23 5 1 . . 12 32 5 46 40 Critical Kills 10 | . . . . . 1 . . 1 . . . . . . 1 . . . . . . . 1 1 4 1 Critical Parts Destroyed 16 | . . . . . 3 2 . 1 . . . . . 1 . . . . . . . . 2 2 3 2 Critical Strikes 37 | . . . . . 4 2 . 3 . . . . . 4 1 . . 1 . . . . 4 5 10 3 Destroy 27 | . . . . . 4 . . 2 . . . . . 1 1 . . . . . . . 3 3 10 3 Smash 2 | . . . . . . 2 . . . . . . . . . . . . . . . . . . . . Sever 5 | . . . . . . . . 1 . . . . . 2 . . . 1 . . . . 1 . . . Impale 3 | . . . . . . . . . . . . . . 1 . . . . . . . . . 2 . . Melee Attacks 232 | . . . . . . 6 13 13 2 5 . 10 17 29 15 18 10 25 . . 1 2 25 23 6 12 Impact 18 | . . . . . . 6 12 . . . . . . . . . . . . . . . . . . . Slashing 166 | . . . . . . . . 13 2 5 . 10 9 15 15 18 10 25 . . 1 2 8 15 6 12 Piercing 48 | . . . . . . . 1 . . . . . 8 14 . . . . . . . . 17 8 . . Sneak Attacks 35 | . . . . . . 1 . 3 . . . . 3 3 . 8 2 5 . . . . 5 3 1 1 Combat Hostiles 2 | . . . . . . . . . . . . . . 2 . . . . . . . . . . . . Follow-up Attacks . | . . . . . . . . . . . . . . . . . . . . . . . . . . . Damage Inflicted 22435 | . 30 888 . 16 976 1199 742 1412 298 . . 225 266 1339 505 1320 1939 517 43 . 39 964 2577 882 3265 2993 Guns 7036 | . 30 109 . 16 976 1089 629 370 23 . . 41 . 426 172 274 56 25 . . . 177 450 560 1054 559 Cannons 348 | . . . . . . . . . . . . . . . . . . . 43 . 39 266 . . . . Explosions 10081 | . . 779 . . . . 113 582 275 . . 184 . . 333 . 1647 . . . . 521 1433 . 2000 2214 Melee 4953 | . . . . . . 110 . 460 . . . . 266 913 . 1046 236 492 . . . . 694 319 211 206 Ramming 17 | . . . . . . . . . . . . . . . . . . . . . . . . 3 . 14 Kinetic 7321 | . 8 68 . 16 976 1089 629 370 23 . . 41 . 426 172 274 56 25 43 . 39 443 450 560 1054 559 Thermal 63 | . 22 41 . . . . . . . . . . . . . . . . . . . . . . . . Explosive 8434 | . . 779 . . . . 113 582 275 . . 184 . . 333 . . . . . . 521 1433 . 2000 2214 Electromagnetic 1647 | . . . . . . . . . . . . . . . . . 1647 . . . . . . . . . Impact 110 | . . . . . . 110 . . . . . . . . . . . . . . . . . . . . Slashing 3589 | . . . . . . . . 460 . . . . 90 571 . 1046 236 492 . . . . 181 96 211 206 Piercing 1254 | . . . . . . . . . . . . . 176 342 . . . . . . . . 513 223 . . Highest Corruption 14 | . . . . . . 1 2 . . . . . . . . . 5 2 3 3 3 5 1 5 . 14 Average Corruption 3 | . . . . . . 1 1 . . . . . . . . . 3 2 2 3 3 4 1 4 . 7 Corruption Purged . | . . . . . . . . . . . . . . . . . . . . . . . . . . . Corruption Blocked . | . . . . . . . . . . . . . . . . . . . . . . . . . . . Effects 46 | . . . . . . 3 1 . . . . . . . . . 2 1 1 5 1 5 . 12 . 15 Message Errors 11 | . . . . . . 1 1 . . . . . . . . . . . 1 1 1 2 . 2 . 2 Matter Fused 9 | . . . . . . . . . . . . . . . . . 1 1 . 1 . . . 2 . 4 Heat Flow Errors 2 | . . . . . . . . . . . . . . . . . 1 . . . . . . 1 . . Energy Discharges 5 | . . . . . . . . . . . . . . . . . . . . 1 . 1 . 3 . . Parts Rejected 1 | . . . . . . . . . . . . . . . . . . . . . . . . . . 1 Data Loss (minor) 8 | . . . . . . 2 . . . . . . . . . . . . . 2 . 1 . 1 . 2 Data Loss (major) 2 | . . . . . . . . . . . . . . . . . . . . . . . . 1 . 1 Misfires 2 | . . . . . . . . . . . . . . . . . . . . . . 1 . 1 . . Alerts 3 | . . . . . . . . . . . . . . . . . . . . . . . . 1 . 2 Misdirections 1 | . . . . . . . . . . . . . . . . . . . . . . . . . . 1 Weapon Failures 2 | . . . . . . . . . . . . . . . . . . . . . . . . . . 2 Overload Shots . | . . . . . . . . . . . . . . . . . . . . . . . . . . . Overflow Damage 1649 | . . 27 . . . 92 . 101 . . . 67 111 115 . 341 145 59 . . . 52 245 210 36 48 Projectiles 43 | . . . . . . . . . . . . . . . . . . . . . . 43 . . . . Explosions 303 | . . 27 . . . . . 18 . . . 67 . . . . 19 . . . . 9 121 . 36 6 Melee 1303 | . . . . . . 92 . 83 . . . . 111 115 . 341 126 59 . . . . 124 210 . 42 Knockbacks 1 | . . . . . . 1 . . . . . . . . . . . . . . . . . . . . Impact 1 | . . . . . . 1 . . . . . . . . . . . . . . . . . . . . Kinetic . | . . . . . . . . . . . . . . . . . . . . . . . . . . . Secondary . | . . . . . . . . . . . . . . . . . . . . . . . . . . . Self-Inflicted Damage 546 | . . 77 . . . . 10 . 28 39 . 37 . . . . 103 . . . . 62 . 1 79 110 Shots 17 | . . 3 . . . . 1 . 2 1 . 2 . . . . 1 . . . . 2 . . 2 3 Rammed 2 | . . . . . . . . . . . . . . . . . . . . . . . . 1 . 1 Targets Rammed 2 | . . . . . . . . . . . . . . . . . . . . . . . . 1 . 1 Kicked . | . . . . . . . . . . . . . . . . . . . . . . . . . . . Crushed . | . . . . . . . . . . . . . . . . . . . . . . . . . . . Highest Temperature 193 | . 26 53 . 6 38 138 73 30 50 . . 11 183 6 . . 176 38 . . 13 . . 193 . 37 Average Temperature 32 | . 16 22 . 4 10 34 32 12 21 . . 7 61 3 . . 92 9 . . 5 . . 109 . 12 Received Heat Transfer 2111 | . . 105 . . 189 279 420 180 90 18 . 9 27 266 22 9 9 46 . 18 34 12 . . 72 306 Siege Activations . | . . . . . . . . . . . . . . . . . . . . . . . . . . . Martial Activations . | . . . . . . . . . . . . . . . . . . . . . . . . . . . Shielding Activations . | . . . . . . . . . . . . . . . . . . . . . . . . . . . Robots Disrupted . | . . . . . . . . . . . . . . . . . . . . . . . . . . . Combat Hostiles . | . . . . . . . . . . . . . . . . . . . . . . . . . . . Robots Corrupted 3 | . . . . . . 1 . . . . . . . . . . 2 . . . . . . . . . Combat Hostiles 1 | . . . . . . . . . . . . . . . . . 1 . . . . . . . . . Parts Fried 8 | . . . . . . 1 . . . . . . . . . . 7 . . . . . . . . . Impact Corruptions 5 | . . . . . . 5 . . . . . . . . . . . . . . . . . . . . Robots Melted . | . . . . . . . . . . . . . . . . . . . . . . . . . . . Combat Hostiles . | . . . . . . . . . . . . . . . . . . . . . . . . . . . Parts Melted 1 | . . . . . . . . . . . . . . . . 1 . . . . . . . . . . Heat Transferred 150 | . 50 100 . . . . . . . . . . . . . . . . . . . . . . . . Parts Sabotaged . | . . . . . . . . . . . . . . . . . . . . . . . . . . . Parts Stolen . | . . . . . . . . . . . . . . . . . . . . . . . . . . . Parts Stripped . | . . . . . . . . . . . . . . . . . . . . . . . . . . . Power Chain Reactions . | . . . . . . . . . . . . . . . . . . . . . . . . . . . Alert | -11 -10 -10 -10 -9 -8 -8 -7 -6 -6 -6 -6 -5 -5 -5 -5 -5 -5 -4 -4 -4 -4 -3 -3 -3 -2 -1 ------- Run | Yrd Mat Min Exi Min Mat Sto Fac Fac Low Low Dat Pro Fac Ext Cet Arc Hub Fac Upp Upp War Pro Res Tes Res Acc Maximum Alert Level 3 | . . . . . . . . . . . . . 2 1 . 1 3 2 . . . . 2 . 1 3 Low Security (%) 78 | . 100 100 . 100 100 100 100 100 . . . . 68 99 100 27 63 64 . . . . 64 100 25 . Level 1 16 | . . . . . . . . . . . . . 19 . . 72 15 18 . . . . 33 . 74 32 Level 2 3 | . . . . . . . . . . . . . 12 . . . 8 17 . . . . 1 . . 22 Level 3 2 | . . . . . . . . . . . . . . . . . 12 . . . . . . . . 44 Level 4 . | . . . . . . . . . . . . . . . . . . . . . . . . . . . Level 5 . | . . . . . . . . . . . . . . . . . . . . . . . . . . . High Security . | . . . . . . . . . . . . . . . . . . . . . . . . . . . Max Security . | . . . . . . . . . . . . . . . . . . . . . . . . . . . Peak Influence 1026 | . 5 37 . 5 80 176 131 194 . . . . 515 207 104 216 1026 452 . . . . 431 165 393 824 Initial 513 | . . . . . . . 60 60 . . . . 513 51 22 . 68 452 . . . . 34 83 83 223 Average 137 | . . 3 . . 22 118 31 83 . . . . 208 76 37 178 284 205 . . . . 173 128 262 581 Influence Increases 9101 | . 5 57 . 5 326 392 349 366 210 45 . 160 534 1007 152 296 1497 280 30 15 259 220 708 363 717 1108 Destroy 0b10 Robot/C 3360 | . . . . . 240 240 180 240 80 . . 20 . 500 80 80 380 . 20 . 120 140 280 40 380 340 Destroy 0b10 Robot/NC 330 | . 5 10 . 5 25 25 . 30 . . . 5 15 10 5 35 55 20 . . 5 . 40 15 5 20 Destroy Leader 554 | . . . . . 44 60 60 50 10 . . . . 52 . . 74 . 10 . . 20 48 12 62 52 Allied During Kill 651 | . . . . . 9 . 7 19 . . . . . 206 27 115 239 . . . 29 . . . . . Successful Hack 380 | . . . . . 5 19 34 . . . . . 35 12 . . . 31 . . . . 70 120 . 54 Select Force Hacks 120 | . . . . . . . 20 . . . . . . . . . 100 . . . . . . . . . Disable Machine 465 | . . . . . . 45 15 . . . . . . . . 45 150 . . . . . 45 60 75 30 Destroy Structure 1081 | . . 47 . . 3 3 18 27 . . . . 34 32 40 6 304 34 . . . . 150 26 120 237 Advance Influence 450 | . . . . . . . . . . . . . 450 . . . . . . . . . . . . . Partial Spotted 180 | . . . . . . . . . . . . . . 45 . 15 15 30 . . . . 30 45 . . Lose Combat Pursuer 1530 | . . . . . . . 15 . 120 45 . 135 . 150 . . 180 165 . 15 105 60 45 45 75 375 Influence Decreases 8304 | . 5 57 . 5 326 257 361 419 116 209 . 60 527 1074 192 100 768 1093 102 55 120 307 612 363 492 684 Entered New Map 1395 | . . . . . . . 75 63 26 32 . . 37 56 18 . 128 473 42 8 . 139 18 65 65 150 Time Decay 4141 | . 5 57 . 5 250 227 216 266 80 177 . 60 190 416 124 100 160 310 60 37 80 148 264 278 417 214 Lost Part 720 | . . . . . 40 30 70 50 10 . . . . 40 30 . 40 10 . 10 . 20 30 10 10 320 Lost Ally 653 | . . . . . 20 . . 40 . . . . . 383 20 . 140 . . . 40 . . 10 . . Purge Threat 1395 | . . . . . 16 . . . . . . . 300 179 . . 300 300 . . . . 300 . . . Squads Dispatched 46 | . . . . . 1 1 5 5 . . . 1 1 1 1 . 10 3 . . . . 5 3 1 8 Investigation 13 | . . . . . . . 2 . . . . . . . 1 . 5 1 . . . . 3 1 . . Extermination 10 | . . . . . . . 1 1 . . . . 1 . . . 1 1 . . . . 2 2 . 1 Reinforcement 10 | . . . . . 1 1 . 1 . . . . . 1 . . 3 1 . . . . . . 1 1 Assault 2 | . . . . . . . . . . . . 1 . . . . 1 . . . . . . . . . Garrison 11 | . . . . . . . 2 3 . . . . . . . . . . . . . . . . . 6 Intercept . | . . . . . . . . . . . . . . . . . . . . . . . . . . . Searches Triggered . | . . . . . . . . . . . . . . . . . . . . . . . . . . . Data Miner Redirects 3 | . . . . . . . . . . . . . . . 1 . . . . . . . 1 1 . . Construction Impeded 2 | . . . . . . . . . . . . . . 1 . . 1 . . . . . . . . . Haulers Reinforced 1 | . . . . . . . . . . . . . . . . . . . . . . . . . 1 . Active Scanning Responses . | . . . . . . . . . . . . . . . . . . . . . . . . . . . Cargo Convoy Interrupts 1 | . . . . . . . . 1 . . . . . . . . . . . . . . . . . . Stealth | -11 -10 -10 -10 -9 -8 -8 -7 -6 -6 -6 -6 -5 -5 -5 -5 -5 -5 -4 -4 -4 -4 -3 -3 -3 -2 -1 --------- Run | Yrd Mat Min Exi Min Mat Sto Fac Fac Low Low Dat Pro Fac Ext Cet Arc Hub Fac Upp Upp War Pro Res Tes Res Acc Distress Signals 28 | . . . . . . 2 . 1 . . . . . 5 1 . 6 2 . . . . 3 1 5 2 Communications Jammed 13 | . . . . . . . . . . . . . . . . . . . . . . . . . . 13 Distress Signals 9 | . . . . . . . . . . . . . . . . . . . . . . . . . . 9 Times Spotted 399 | . 1 17 . . 18 21 15 14 12 3 . 9 2 27 6 17 29 19 1 1 33 10 26 10 42 66 Peak Tracking Total 20 | . 1 17 . . 5 5 5 4 4 3 . 12 2 7 5 2 19 5 1 1 16 5 6 4 13 20 Tactical Retreats 45 | . . 1 . . . . 1 . 3 2 . 3 . 5 . . 4 6 . 1 3 1 3 1 2 9 Traps | -11 -10 -10 -10 -9 -8 -8 -7 -6 -6 -6 -6 -5 -5 -5 -5 -5 -5 -4 -4 -4 -4 -3 -3 -3 -2 -1 ------- Run | Yrd Mat Min Exi Min Mat Sto Fac Fac Low Low Dat Pro Fac Ext Cet Arc Hub Fac Upp Upp War Pro Res Tes Res Acc Traps Triggered 6 | . . . . . . 2 1 . . . . . 1 . . . . . . . . . 1 . . 1 Indirectly . | . . . . . . . . . . . . . . . . . . . . . . . . . . . Trap Hack Attempts . | . . . . . . . . . . . . . . . . . . . . . . . . . . . Triggered . | . . . . . . . . . . . . . . . . . . . . . . . . . . . Disarmed . | . . . . . . . . . . . . . . . . . . . . . . . . . . . Reprogrammed . | . . . . . . . . . . . . . . . . . . . . . . . . . . . Reused . | . . . . . . . . . . . . . . . . . . . . . . . . . . . Traps Extracted . | . . . . . . . . . . . . . . . . . . . . . . . . . . . Installed . | . . . . . . . . . . . . . . . . . . . . . . . . . . . Triggered . | . . . . . . . . . . . . . . . . . . . . . . . . . . . Machines | -11 -10 -10 -10 -9 -8 -8 -7 -6 -6 -6 -6 -5 -5 -5 -5 -5 -5 -4 -4 -4 -4 -3 -3 -3 -2 -1 ---------- Run | Yrd Mat Min Exi Min Mat Sto Fac Fac Low Low Dat Pro Fac Ext Cet Arc Hub Fac Upp Upp War Pro Res Tes Res Acc Machines Disabled 33 | . . 2 . . . 3 1 . . . . . . . . 3 10 . . . . . 3 4 5 2 Max in Single Turn 9 | . . 2 . . . 1 1 . . . . . . . . 1 9 . . . . . 1 1 1 1 Garrison Access 5 | . . . . . . . 1 . . . . . . . . . . . . . . . 1 1 1 1 Network Hub 3 | . . . . . . . . . . . . . . . . . 3 . . . . . . . . . Energy Cycler 1 | . . . . . . . . . . . . . . . . . . . . . . . . . . 1 Machines Repaired . | . . . . . . . . . . . . . . . . . . . . . . . . . . . Machines Dismantled . | . . . . . . . . . . . . . . . . . . . . . . . . . . . Machines Sabotaged 2 | . . . . . . . . . . . . . . . . . 2 . . . . . . . . . Overloaded Fab Kills . | . . . . . . . . . . . . . . . . . . . . . . . . . . . Hacking | -11 -10 -10 -10 -9 -8 -8 -7 -6 -6 -6 -6 -5 -5 -5 -5 -5 -5 -4 -4 -4 -4 -3 -3 -3 -2 -1 --------- Run | Yrd Mat Min Exi Min Mat Sto Fac Fac Low Low Dat Pro Fac Ext Cet Arc Hub Fac Upp Upp War Pro Res Tes Res Acc Machines Accessed 73 | . . 1 1 2 2 6 7 3 . . 4 . 4 5 2 . 6 4 . . 3 . 6 13 . 4 Terminals 46 | . . . . 1 2 6 4 2 . . . . 3 4 2 . 6 2 . . . . 4 8 . 2 Fabricators 8 | . . . . . . . 2 1 . . . . . . . . . 1 . . . . 1 2 . 1 Repair Stations 3 | . . . . . . . . . . . . . 1 1 . . . 1 . . . . . . . . Recycling Units . | . . . . . . . . . . . . . . . . . . . . . . . . . . . Scanalyzers 2 | . . . . . . . . . . . . . . . . . . . . . . . . 2 . . Garrison Access 4 | . . . . . . . 1 . . . . . . . . . . . . . . . 1 1 . 1 Total Hacks 368 | . . 1 23 3 6 14 21 4 . . 29 . 19 11 4 . 20 51 . . 9 . 46 89 . 18 Successful 219 | . . 1 23 2 3 7 11 4 . . 29 . 12 6 2 . 10 31 . . 9 . 29 32 . 8 Failed 149 | . . . . 1 3 7 10 . . . . . 7 5 2 . 10 20 . . . . 17 57 . 10 Catastrophic 28 | . . . . . . . 3 . . . . . 4 . . . 3 3 . . . . 1 13 . 1 Database Lockouts . | . . . . . . . . . . . . . . . . . . . . . . . . . . . Manual 142 | . . . . 1 5 8 7 3 . . . . 10 3 1 . 11 27 . . 1 . 23 37 . 5 Terminals 246 | . . . . 2 6 14 17 3 . . . . 17 8 4 . 20 30 . . . . 41 70 . 14 Fabricators 22 | . . . . . . . 3 1 . . . . . . . . . 4 . . . . 4 7 . 3 Repair Stations 22 | . . . . . . . . . . . . . 2 3 . . . 17 . . . . . . . . Recycling Units . | . . . . . . . . . . . . . . . . . . . . . . . . . . . Scanalyzers 11 | . . . . . . . . . . . . . . . . . . . . . . . . 11 . . Garrison Access 4 | . . . . . . . 1 . . . . . . . . . . . . . . . 1 1 . 1 Terminal Hacks 166 | . . 1 23 2 3 6 6 2 . . 29 . 9 6 2 . 6 17 . . 9 . 21 20 . 4 Record 44 | . . . 23 . . . . . . . 11 . . . 1 . . 1 . . 8 . . . . . Part Schematic 12 | . . . . . . . . . . . 8 . 1 . . . . 1 . . . . 1 1 . . Robot Schematic 7 | . . . . . . . . . . . 7 . . . . . . . . . . . . . . . Prototype ID Bank 11 | . . . . . . 1 . 1 . . 3 . . . . . . 1 . . . . 3 2 . . Open Door 8 | . . 1 . 1 . 3 . . . . . . . . 1 . . . . . 1 . . . . 1 Level Access Points 2 | . . . . . . . . . . . . . . . . . 1 . . . . . . 1 . . Branch Access Points 7 | . . . . . . . 1 1 . . . . 1 . . . . 1 . . . . 1 1 . 1 Machine Index 1 | . . . . . . . . . . . . . . . . . . . . . . . 1 . . . Alert Level 13 | . . . . . 1 . 1 . . . . . 3 1 . . 1 2 . . . . 1 2 . 1 Unreport Threat 11 | . . . . . 1 . . . . . . . 2 2 . . 2 2 . . . . 2 . . . Locate Traps 15 | . . . . . . 1 3 . . . . . 1 1 . . 1 1 . . . . 2 5 . . Dispatch Records 1 | . . . . . . . . . . . . . . . . . . 1 . . . . . . . . Security Status 1 | . . . . . . . . . . . . . . . . . . . . . . . 1 . . . Patrol Status 3 | . . . . 1 . . . . . . . . . . . . . 1 . . . . 1 . . . Recall Investigation 1 | . . . . . . . . . . . . . . . . . . . . . . . . 1 . . Recall Extermination 4 | . . . . . . . . . . . . . . . . . . 1 . . . . 1 2 . . Recall Reinforcements 1 | . . . . . . . . . . . . . . . . . . 1 . . . . . . . . Hauler Manifests 1 | . . . . . . . . . . . . . . . . . . 1 . . . . . . . . Registered Components 3 | . . . . . . . . . . . . . . . . . . 1 . . . . 1 1 . . Registered Prototypes 5 | . . . . . . . . . . . . . . . . . . 1 . . . . 2 2 . . Zone Layout 15 | . . . . . 1 1 1 . . . . . 1 2 . . 1 1 . . . . 4 2 . 1 Fabricator Hacks 10 | . . . . . . . 1 . . . . . . . . . . 2 . . . . 3 3 . 1 Network Status 3 | . . . . . . . 1 . . . . . . . . . . . . . . . . 1 . 1 Load Schematic 3 | . . . . . . . . . . . . . . . . . . 1 . . . . 1 1 . . Build 4 | . . . . . . . . . . . . . . . . . . 1 . . . . 2 1 . . Repair Station Hacks 11 | . . . . . . . . . . . . . 2 . . . . 9 . . . . . . . . Scan Component 6 | . . . . . . . . . . . . . 1 . . . . 5 . . . . . . . . Repair 5 | . . . . . . . . . . . . . 1 . . . . 4 . . . . . . . . Recycling Unit Hacks . | . . . . . . . . . . . . . . . . . . . . . . . . . . . Scanalyzer 3 | . . . . . . . . . . . . . . . . . . . . . . . . 3 . . Insert Component 2 | . . . . . . . . . . . . . . . . . . . . . . . . 2 . . Retrieve Study 1 | . . . . . . . . . . . . . . . . . . . . . . . . 1 . . Garrison Access Hacks 4 | . . . . . . . 1 . . . . . . . . . . . . . . . 1 1 . 1 Seal Access 4 | . . . . . . . 1 . . . . . . . . . . . . . . . 1 1 . 1 Unauthorized Hacks 25 | . . . . . . 1 3 2 . . . . 1 . . . 4 3 . . . . 4 5 . 2 Terminals 16 | . . . . . . 1 1 1 . . . . 1 . . . 4 2 . . . . 3 2 . 1 Track 2 | . . . . . . . . . . . . . . . . . . 1 . . . . 1 . . . Assimilate 1 | . . . . . . . . . . . . . . . . . . . . . . . . 1 . . Botnet 9 | . . . . . . 1 1 1 . . . . 1 . . . . 1 . . . . 2 1 . 1 Sabotage 4 | . . . . . . . . . . . . . . . . . 4 . . . . . . . . . Fabricators 9 | . . . . . . . 2 1 . . . . . . . . . 1 . . . . 1 3 . 1 Report 5 | . . . . . . . 1 1 . . . . . . . . . . . . . . . 2 . 1 Prioritize 3 | . . . . . . . . . . . . . . . . . . 1 . . . . 1 1 . . Download 1 | . . . . . . . 1 . . . . . . . . . . . . . . . . . . . Repair Stations . | . . . . . . . . . . . . . . . . . . . . . . . . . . . Recycling Units . | . . . . . . . . . . . . . . . . . . . . . . . . . . . Scanalyzers . | . . . . . . . . . . . . . . . . . . . . . . . . . . . Garrison Access . | . . . . . . . . . . . . . . . . . . . . . . . . . . . Data Cores Recovered 2 | . . . . . . . . . . . . . . 1 . . . . . . . . 1 . . . Used . | . . . . . . . . . . . . . . . . . . . . . . . . . . . Hacking Detections 47 | . . . . 1 2 4 4 2 . . . . 4 4 3 . 3 3 . . . . 4 11 . 2 Full Trace Events 5 | . . . . . . . . . . . . . . . 1 . . 1 . . . . 2 1 . . Feedback Events . | . . . . . . . . . . . . . . . . . . . . . . . . . . . Feedback Blocked 1 | . . . . . . . . . . . . . . . . . . . . . . . 1 . . . Robot Schematics Acquired 7 | . . . . . . . . . . . 7 . . . . . . . . . . . . . . . Robots Built . | . . . . . . . . . . . . . . . . . . . . . . . . . . . Authchips . | . . . . . . . . . . . . . . . . . . . . . . . . . . . Time . | . . . . . . . . . . . . . . . . . . . . . . . . . . . Total Robot Build Rating . | . . . . . . . . . . . . . . . . . . . . . . . . . . . Part Schematics Acquired 12 | . . . . . . . . . . . 8 . 1 . . . . 1 . . . . 1 1 . . Parts Built 4 | . . . . . . . . . . . . . . . . . . 1 . . . . 2 1 . . Authchips . | . . . . . . . . . . . . . . . . . . . . . . . . . . . Time 343 | . . . . . . . . . . . . . . . . . . 38 . . . . 203 102 . . Total Part Build Rating 31 | . . . . . . . . . . . . . . . . . . 5 . . . . 18 8 . . Part Studies Acquired 1 | . . . . . . . . . . . . . . . . . . . . . . . . 1 . . Parts Repaired 5 | . . . . . . . . . . . . . 1 . . . . 4 . . . . . . . . Time 174 | . . . . . . . . . . . . . 25 . . . . 149 . . . . . . . . Parts Recycled . | . . . . . . . . . . . . . . . . . . . . . . . . . . . Recycled Matter . | . . . . . . . . . . . . . . . . . . . . . . . . . . . Retrieved Matter . | . . . . . . . . . . . . . . . . . . . . . . . . . . . Retrieved Components . | . . . . . . . . . . . . . . . . . . . . . . . . . . . Parts Scanalyzed 1 | . . . . . . . . . . . . . . . . . . . . . . . . 1 . . Part Schematics Acquired . | . . . . . . . . . . . . . . . . . . . . . . . . . . . Parts Damaged 1 | . . . . . . . . . . . . . . . . . . . . . . . . 1 . . Bothacking | -11 -10 -10 -10 -9 -8 -8 -7 -6 -6 -6 -6 -5 -5 -5 -5 -5 -5 -4 -4 -4 -4 -3 -3 -3 -2 -1 ------------ Run | Yrd Mat Min Exi Min Mat Sto Fac Fac Low Low Dat Pro Fac Ext Cet Arc Hub Fac Upp Upp War Pro Res Tes Res Acc Used RIF Installer . | . . . . . . . . . . . . . . . . . . . . . . . . . . . Robots Hacked . | . . . . . . . . . . . . . . . . . . . . . . . . . . . Non-combat . | . . . . . . . . . . . . . . . . . . . . . . . . . . . Combat . | . . . . . . . . . . . . . . . . . . . . . . . . . . . Robot Hacks Applied . | . . . . . . . . . . . . . . . . . . . . . . . . . . . Relay Couplers Released 5 | . . . . . . . . . . . . . . . . . . . . . . . 4 . 1 . Machine Destruction 1 | . . . . . . . . . . . . . . . . . . . . . . . . . 1 . Programmers 4 | . . . . . . . . . . . . . . . . . . . . . . . 4 . . . Fabnet Peak Effective % . | . . . . . . . . . . . . . . . . . . . . . . . . . . . Robots Rewired 25 | . . . . . . . . . . . . . . 20 . . . . . . 5 . . . . . Allies Hacked . | . . . . . . . . . . . . . . . . . . . . . . . . . . . Hacks Repelled 1 | . . . . . . . . . . . . . . . . . . . . . 1 . . . . . Allies | -11 -10 -10 -10 -9 -8 -8 -7 -6 -6 -6 -6 -5 -5 -5 -5 -5 -5 -4 -4 -4 -4 -3 -3 -3 -2 -1 -------- Run | Yrd Mat Min Exi Min Mat Sto Fac Fac Low Low Dat Pro Fac Ext Cet Arc Hub Fac Upp Upp War Pro Res Tes Res Acc Total Allies 47 | . . 4 . . . . 1 2 . . . . . 29 5 . . . . . 5 . . 1 . . Largest Group 14 | . . 4 4 3 3 . 1 1 . . . . . 14 8 8 7 . . . 5 . . 1 . . Highest-Rated Group 695 | . . 71 71 40 40 . 16 32 . . . . . 424 695 695 542 . . . 287 . . 45 . . Highest-Rated Ally 159 | . . 31 31 16 16 . 16 32 . . . . . 159 159 153 96 . . . 68 . . 45 . . Total Orders 6 | . . 1 . . . 3 1 1 . . . . . . . . . . . . . . . . . . RETURN 6 | . . 1 . . . 3 1 1 . . . . . . . . . . . . . . . . . . Ally Attacks 347 | . . . . . 22 1 13 15 . . . . . 159 22 38 59 . . . 18 . . . . . Total Damage 8456 | . . . . . 143 8 136 68 . . . . . 2789 569 1099 2418 . . . 1226 . . . . . Kills 58 | . . . . . 2 . 3 1 . . . . . 19 5 3 18 . . . 7 . . . . . Allies Corrupted 3 | . . . . . . . . . . . . . . 1 . . 2 . . . . . . . . . Allies Melted 1 | . . . . . . . . . . . . . . 1 . . . . . . . . . . . . Intel | -11 -10 -10 -10 -9 -8 -8 -7 -6 -6 -6 -6 -5 -5 -5 -5 -5 -5 -4 -4 -4 -4 -3 -3 -3 -2 -1 ------- Run | Yrd Mat Min Exi Min Mat Sto Fac Fac Low Low Dat Pro Fac Ext Cet Arc Hub Fac Upp Upp War Pro Res Tes Res Acc Active Infowar (turns) 12221 | . . 243 229 340 944 453 713 814 161 502 33 308 383 1072 357 206 324 690 129 199 588 613 631 610 1230 449 Optics 2575 | . . . . . . . . . . . . . . . . . . . . . . . 286 610 1230 449 Sensors 7727 | . . . . . . . . . . 376 33 308 358 1072 357 206 324 690 129 199 588 597 618 498 1226 148 IFF 1306 | . . . . . . . . . . . . . . 887 357 62 . . . . . . . . . . Terrain 919 | . . . . . . 369 550 . . . . . . . . . . . . . . . . . . . Seismic 3217 | . . 243 229 340 944 452 713 281 15 . . . . . . . . . . . . . . . . . Machine Analysis 8179 | . . . . . . 371 713 814 161 502 33 308 383 1072 357 206 324 690 129 199 588 613 631 85 . . Jamming 259 | . . . . . . . . . . . . . . . . . . . . . . 109 . 13 1 136 Robot Analysis Total . | . . . . . . . . . . . . . . . . . . . . . . . . . . . Derelict Logs Recovered 7 | . . 1 . 1 . . . . 1 . . 2 . . . . . . 1 1 . . . . . . Drone Launches 30 | . . 1 . . . 4 8 17 . . . . . . . . . . . . . . . . . . Drone Recoveries 27 | . . 1 . . . 4 8 14 . . . . . . . . . . . . . . . . . . Exploration | -11 -10 -10 -10 -9 -8 -8 -7 -6 -6 -6 -6 -5 -5 -5 -5 -5 -5 -4 -4 -4 -4 -3 -3 -3 -2 -1 ------------- Run | Yrd Mat Min Exi Min Mat Sto Fac Fac Low Low Dat Pro Fac Ext Cet Arc Hub Fac Upp Upp War Pro Res Tes Res Acc Turns Passed 12910 | . 311 527 229 340 944 547 713 814 161 502 33 308 383 1072 357 206 324 690 129 199 588 613 631 610 1230 449 Spaces Moved 13992 | 1 210 388 212 308 513 248 441 648 359 541 79 514 523 886 187 201 529 631 278 404 774 789 901 880 2009 538 Core 62 | . . . . . . . . . . . . . . . . . . . . . . . . . . 62 Treads . | . . . . . . . . . . . . . . . . . . . . . . . . . . . Legs 55 | 1 54 . . . . . . . . . . . . . . . . . . . . . . . . . Wheels 2691 | . 156 388 212 308 513 248 441 425 . . . . . . . . . . . . . . . . . . Hover 11184 | . . . . . . . . 223 359 541 79 514 523 886 187 201 529 631 278 404 774 789 901 880 2009 476 Flight . | . . . . . . . . . . . . . . . . . . . . . . . . . . . Fastest Speed 40 | 120 105 105 105 105 120 120 115 40 40 40 40 40 40 40 40 40 40 45 43 43 41 41 41 42 40 40 Average Speed 59 | 120 138 112 105 105 134 139 121 95 40 40 40 40 40 42 43 44 42 58 43 47 44 41 42 42 46 48 Slowest Speed 260 | 120 260 120 105 105 170 160 160 170 40 40 40 40 40 44 44 64 113 113 108 48 48 50 50 43 113 131 Overloaded Moves . | . . . . . . . . . . . . . . . . . . . . . . . . . . . Propulsion Burnouts . | . . . . . . . . . . . . . . . . . . . . . . . . . . . Robots Hopped . | . . . . . . . . . . . . . . . . . . . . . . . . . . . Potential Cave-ins 15 | . . . . . . . . . . . . . 1 8 . . . 5 . . . . . . 1 . Cave-ins Triggered 1 | . . . . . . . . . . . . . . . . . . 1 . . . . . . . . Exploration Rate (%) 52 | 2 38 86 53 68 28 58 14 18 62 74 68 61 13 66 70 94 69 15 52 59 77 80 34 85 42 28 Regions Visited 26 Branch Regions 17 Pre-discovered Areas 2 | . . . 1 . . . . . . . 1 . . . . . . . . . . . . . . . Known Exits Taken 8 | . . . . . . 1 . 1 . . . . 1 . . . 1 1 1 . . . 1 1 . . Unknown Exits Taken 18 | 1 1 1 1 1 1 . 1 . 1 1 1 1 . 1 1 1 . . . 1 1 1 . . 1 . Scrap Searched 18 | . . 1 . 1 . . . . 4 3 . 3 . . . . . . 2 2 . 2 . . . . Spaces Dug 176 | . . . . . . 1 5 3 2 24 . 11 18 8 . . 9 29 . . 5 4 11 13 2 31 Terrain Destroyed 839 | . . 68 . . . 1 17 42 35 24 . 52 18 13 46 2 166 29 1 . 5 49 97 16 76 82 Melee 98 | . . . . . . 1 5 3 2 5 . 9 13 1 . . 6 15 . . 1 2 11 13 2 9 Projectile 75 | . . . . . . . . 1 . . . 2 5 12 1 2 6 14 1 . 4 6 6 3 7 5 AOE 666 | . . 68 . . . . 12 38 33 19 . 41 . . 45 . 154 . . . . 41 80 . 67 68 Terrain Rammed . | . . . . . . . . . . . . . . . . . . . . . . . . . . . Walls Destroyed . | . . . . . . . . . . . . . . . . . . . . . . . . . . . Machines Disabled . | . . . . . . . . . . . . . . . . . . . . . . . . . . . Actions | -11 -10 -10 -10 -9 -8 -8 -7 -6 -6 -6 -6 -5 -5 -5 -5 -5 -5 -4 -4 -4 -4 -3 -3 -3 -2 -1 --------- Run | Yrd Mat Min Exi Min Mat Sto Fac Fac Low Low Dat Pro Fac Ext Cet Arc Hub Fac Upp Upp War Pro Res Tes Res Acc Total 17635 | . 223 453 218 324 688 377 547 796 367 819 79 588 671 1498 425 279 608 894 282 408 1012 1046 1081 1060 2233 659 Wait 2345 | . 3 35 7 8 110 34 36 59 2 263 1 46 103 370 208 28 51 210 1 . 186 230 66 112 127 49 Move 13964 | . 209 387 211 307 512 247 440 647 358 540 78 513 522 885 186 200 528 629 277 403 773 788 900 879 2008 537 Hop . | . . . . . . . . . . . . . . . . . . . . . . . . . . . Pick Up 102 | . 5 8 . 4 6 15 10 8 . 3 . 2 4 4 1 6 2 2 . 2 3 1 5 5 5 1 Fast Attach 81 | . 1 . . . 2 2 2 18 1 1 . . 3 5 1 3 . 8 1 . 4 . 9 4 7 9 Attach 55 | . . . . . 5 5 8 5 . . . . 2 2 2 1 2 1 . . 1 1 5 1 3 11 Detach 23 | . . . . . . 3 2 3 . 1 . . 1 1 . 1 . 1 . . 1 . 5 1 2 1 Swap 185 | . 3 9 . 1 5 7 7 11 2 2 . 3 6 18 3 4 5 4 2 2 6 11 30 13 19 12 Drop 155 | . . 3 . 3 4 15 5 17 . 3 . 2 10 14 1 10 4 1 . 1 12 . 18 11 19 2 Fire 328 | . 2 11 . 1 44 43 24 15 2 1 . 12 3 25 8 8 6 12 1 . 8 13 18 10 37 24 Melee 232 | . . . . . . 6 13 13 2 5 . 10 17 29 15 18 10 25 . . 1 2 25 23 6 12 Ram 2 | . . . . . . . . . . . . . . . . . . . . . . . . 1 . 1 Kick . | . . . . . . . . . . . . . . . . . . . . . . . . . . . Crush . | . . . . . . . . . . . . . . . . . . . . . . . . . . . Escape Stasis 1 | . . . . . . . . . . . . . . . . . . 1 . . . . . . . . Rewire 162 | . . . . . . . . . . . . . . 145 . . . . . . 17 . . . . . Trap . | . . . . . . . . . . . . . . . . . . . . . . . . . . . Miscellaneous . | . . . . . . . . . . . . . . . . . . . . . . . . . . . Route ------- -11/Scrapyard -10/Materials (discovered 2 exits: [*Mat] / *Min) -10/Mines (discovered 2 exits: [*Mat] / *Exi) -10/Exiles -9/Mines (discovered 2 exits: *Mat x2) -8/Materials (discovered 3 exits: Fac / *Sto x2) -8/Storage (discovered 2 exits: *Fac / [Rec]) -7/Factory (discovered 3 exits: *Fac / *Low x2) -6/Factory (discovered 4 exits: *Fac x2 / *Low x2) -6/Lower Caves -6/Lower Caves (discovered 2 exits: *Fac / *Dat) -6/Data Miner -5/Proximity Caves -5/Factory (discovered 5 exits: *Fac / Upp x2 / *Ext x2) -5/Extension (discovered 2 exits: *Fac / *Cet) -5/Cetus -5/Archives (discovered 3 exits: *Fac / *Hub x2) -5/Hub_04(d) (discovered 4 exits: *Fac x4) -4/Factory (discovered 3 exits: *Upp x2 / Arm) -4/Upper Caves -4/Upper Caves -4/Warlord -3/Proximity Caves -3/Research (discovered 3 exits: *Res / *Tes x2) -3/Testing -2/Research (discovered 2 exits: *Acc / [*Qua]) -1/Access (discovered 2 exits: [*Sur] / Com) To Epsilon Eridani History --------- Turn | Location | Event 1 | -11/Scrapyard | Discovered new exit (range 0) 1 | -11/Scrapyard | Entered Materials 153 | -10/Materials | Discovered new exit (range 15) 228 | -10/Materials | Discovered new exit (range 7) 307 | -10/Materials | Build established: Mutant 312 | -10/Materials | Entered Mines 352 | -10/Mines | Received a Rocket Launcher from a helpful Derelict 428 | -10/Mines | Assembled infested the area 505 | -10/Mines | Destroyed 11 combat bots 533 | -10/Mines | YI-UF0 nonchalantly dropped a Grenade Launcher on the ground 555 | -10/Mines | Learned Materials trap positions 572 | -10/Mines | Assisted by bots powering up and referring to "LRC-V3" 590 | -10/Mines | Received a Mining Laser from a helpful Derelict 721 | -10/Mines | Discovered new exit (range 7) 730 | -10/Mines | Found the Drone Emporium 736 | -10/Mines | Found Prototype Device 737 | -10/Mines | Identified Splice Drone Bay 794 | -10/Mines | Found a Scrap Suit stashed away for nefarious purposes 799 | -10/Mines | Found Scrap Suit 813 | -10/Mines | Deemed a non-threat by the Exiles lab entrance 814 | -10/Mines | Discovered new exit (range 5) 839 | -10/Mines | Entered Exiles 839 | -10/Exiles | Accompanied by 4 allies 865 | -10/Exiles | Met 8R-AWN 883 | -10/Exiles | Met EX-HEX 912 | -10/Exiles | Met EX-BIN 932 | -10/Exiles | Met EX-DEC 972 | -10/Exiles | Discovered new exit (range 14) 1020 | -10/Exiles | Learned location of Zion (-7) 1068 | -10/Exiles | Entered Mines 1068 | -9/Mines | Accompanied by 3 allies 1299 | -9/Mines | Discovered new exit (range 15) 1395 | -9/Mines | Discovered new exit (range 5) 1399 | -9/Mines | Met a Derelict who couldn't figure out how to use a Trap Extractor 1408 | -9/Mines | Entered Materials 1408 | -8/Materials | Accompanied by 3 allies 1408 | -8/Materials | Evolved 4 slots: Propulsion x1, Utility x3 1409 | -8/Materials | Identified exit to Factory 1410 | -8/Materials | Loaded intel: 28 trap records 1414 | -8/Materials | Discovered new exit (range 10) 1982 | -8/Materials | Discovered new exit (range 14) 2352 | -8/Materials | Entered Storage 2362 | -8/Storage | Build established: Scavenger-Mutant 2663 | -8/Storage | Discovered new exit (range 8) 2876 | -8/Storage | Discovered exit to Factory (range 9) 2899 | -8/Storage | Entered Factory 2899 | -7/Factory | Evolved 2 slots: Propulsion x2 3141 | -7/Factory | Identified exit to Lower Caves 3452 | -7/Factory | Garrison activated, responded to threat 3527 | -7/Factory | Lost 6 parts (2n3u1w) 3599 | -7/Factory | Discovered new exit (range 9) 3612 | -7/Factory | Entered another Factory area 3612 | -6/Factory | Evolved 2 slots: Propulsion x1, Utility x1 4049 | -6/Factory | Lost 3 parts (1n2u) 4121 | -6/Factory | Discovered new exit (range 15) 4146 | -6/Factory | Garrison activated, responded to threat 4334 | -6/Factory | Identified exit to Lower Caves 4349 | -6/Factory | Cargo convoy interrupted 4349 | -6/Factory | Discovered new exit (range 12) 4426 | -6/Factory | Entered Lower Caves 4459 | -6/Lower Caves | Learned Factory security intel 4582 | -6/Lower Caves | Encountered a Warlord checkpoint 4583 | -6/Lower Caves | Discovered new exit (range 5) 4587 | -6/Lower Caves | Entered another Lower Caves area 4599 | -6/Lower Caves | Discovered new exit (range 11) 4614 | -6/Lower Caves | Spotted B-75 Beast 4715 | -6/Lower Caves | Build established: Mutant 4740 | -6/Lower Caves | Attracted the attention of an 0b10 checkpoint 5076 | -6/Lower Caves | Discovered new exit (range 8) 5089 | -6/Lower Caves | Entered Data Miner 5089 | -6/Data Miner | Discovered new exit (range 6) 5097 | -6/Data Miner | Met Data Miner 5105 | -6/Data Miner | Learned location of Section 7 (-2) 5105 | -6/Data Miner | Acquired the access code to Warlord's prototype stash 5112 | -6/Data Miner | Received God Mode back door access code from Data Miner 5122 | -6/Data Miner | Entered Proximity Caves 5276 | -5/Proximity Caves | Spotter reported a threat 5301 | -5/Proximity Caves | Spotter reported a threat 5302 | -5/Proximity Caves | Attracted the attention of an 0b10 outpost 5329 | -5/Proximity Caves | Spotter reported a threat 5361 | -5/Proximity Caves | Spotted B-75 Beast 5425 | -5/Proximity Caves | Learned 12 Factory zone layouts 5426 | -5/Proximity Caves | Discovered new exit (range 7) 5429 | -5/Proximity Caves | Learned Factory emergency access door positions 5430 | -5/Proximity Caves | Entered Factory 5430 | -5/Factory | Evolved 2 slots: Power x1, Utility x1 5431 | -5/Factory | Identified exit to Factory 5431 | -5/Factory | Identified exit to Extension 5477 | -5/Factory | Identified exit to Upper Caves 5597 | -5/Factory | Repaired Adv. Sensor Array 5813 | -5/Factory | Entered Extension 5860 | -5/Extension | Rescued a captive Derelict 5929 | -5/Extension | Rescued a captive Derelict 5932 | -5/Extension | Rescued a captive Derelict 6012 | -5/Extension | Rescued a captive Derelict 6343 | -5/Extension | Rescued a captive Derelict 6344 | -5/Extension | Rescued a captive Derelict 6359 | -5/Extension | Rescued a captive Derelict 6427 | -5/Extension | Lost 4 allies 6512 | -5/Extension | Lost 3 allies 6558 | -5/Extension | Rescued a captive Derelict 6790 | -5/Extension | Rescued A7 6843 | -5/Extension | Discovered exit to Factory (range 10) 6844 | -5/Extension | Discovered new exit (range 6) 6885 | -5/Extension | Entered Cetus 6885 | -5/Cetus | Accompanied by 5 allies (A7) 6890 | -5/Cetus | Acquired a Cetus Manufacturing Module code from A7 6894 | -5/Cetus | Spotted Cetus Guard 6894 | -5/Cetus | Spotted Cetus Guard 6902 | -5/Cetus | Spotted Cetus Guard 6902 | -5/Cetus | Spotted Cetus Guard 6912 | -5/Cetus | Allies destroyed Cetus Guard 6912 | -5/Cetus | Destroyed Cetus Guard 6924 | -5/Cetus | Allies destroyed Cetus Guard 6928 | -5/Cetus | Allies destroyed Cetus Guard 6951 | -5/Cetus | Lost 3 parts (2n1w) 6954 | -5/Cetus | Started Cetus Manufacturing Module 6979 | -5/Cetus | Manufactured an Enhanced Grunt 7004 | -5/Cetus | Manufactured an Enhanced Grunt 7029 | -5/Cetus | Manufactured an Enhanced Grunt 7054 | -5/Cetus | Manufactured an Enhanced Grunt 7079 | -5/Cetus | Manufactured an Enhanced Grunt 7133 | -5/Cetus | Escorted A7 to Cetus Mainframe 7154 | -5/Cetus | Incoming investigation squad redirected 7209 | -5/Cetus | Discovered new exit (range 16) 7242 | -5/Cetus | Entered Archives 7242 | -5/Archives | Accompanied by 8 allies (A7) 7247 | -5/Archives | Received a hacking code to weaken MAIN.C 7287 | -5/Archives | Discovered new exit (range 15) 7297 | -5/Archives | Build established: Commander-Scout 7300 | -5/Archives | Discovered exit to Factory (range 14) 7370 | -5/Archives | Discovered new exit (range 15) 7448 | -5/Archives | Entered Hub_04(d) 7448 | -5/Hub_04(d) | Accompanied by 7 allies 7454 | -5/Hub_04(d) | Discovered exit to Factory (range 8) 7492 | -5/Hub_04(d) | Discovered exit to Factory (range 15) 7617 | -5/Hub_04(d) | Build established: Commander-Mutant 7709 | -5/Hub_04(d) | Network Hub disabled 7714 | -5/Hub_04(d) | Spotted Lightning 7714 | -5/Hub_04(d) | Spotted Lightning 7714 | -5/Hub_04(d) | Spotted Lightning 7730 | -5/Hub_04(d) | Network Hub disabled 7748 | -5/Hub_04(d) | First assault squad dispatched 7754 | -5/Hub_04(d) | Discovered exit to Factory (range 16) 7754 | -5/Hub_04(d) | Network Hub disabled 7757 | -5/Hub_04(d) | Lost 3 allies 7772 | -5/Hub_04(d) | Entered Factory 7772 | -4/Factory | Evolved 2 slots: Utility x2 7801 | -4/Factory | Lost 3 parts (3n) 7873 | -4/Factory | Repaired Centrium Medium Armor Plating 7903 | -4/Factory | Repaired Cmb. Gravmag System 7968 | -4/Factory | Build established: Hacker-Mutant 7968 | -4/Factory | Identified exit to Upper Caves 7968 | -4/Factory | Identified exit to Armory 8057 | -4/Factory | Fabricated Lgt. Regenerative Plating (x1) 8127 | -4/Factory | Repaired Antigrav System 8164 | -4/Factory | Spotted B-86 Titan 8167 | -4/Factory | Repaired Broken Antigrav System? 8380 | -4/Factory | Crushed by falling debris 8414 | -4/Factory | Spotted B-86 Titan 8462 | -4/Factory | Entered Upper Caves 8470 | -4/Upper Caves | Identified exit to Upper Caves 8591 | -4/Upper Caves | Entered another Upper Caves area 8593 | -4/Upper Caves | Attracted the attention of an 0b10 checkpoint 8700 | -4/Upper Caves | Encountered a Warlord checkpoint 8766 | -4/Upper Caves | Discovered new exit (range 5) 8774 | -4/Upper Caves | Learned Research stockpile data 8790 | -4/Upper Caves | Entered Warlord 8806 | -4/Warlord | System corruption cleaned by Quarantine Array 8857 | -4/Warlord | Visited the Vortex Lab 8877 | -4/Warlord | Warlord's base attacked by MAIN.C 8980 | -4/Warlord | Met Warlord 8986 | -4/Warlord | Opened Warlord's prototype stash 8991 | -4/Warlord | Found Prototype Hackware 9125 | -4/Warlord | Warlord forces counterattacked 9192 | -4/Warlord | Lost 3 allies 9278 | -4/Warlord | Spotted Executioner 9372 | -4/Warlord | Lost 21 allies 9374 | -4/Warlord | Discovered new exit (range 14) 9378 | -4/Warlord | Entered Proximity Caves 9980 | -3/Proximity Caves | Discovered new exit (range 5) 9991 | -3/Proximity Caves | Entered Research 9991 | -3/Research | Evolved 2 slots: Utility x2 9999 | -3/Research | Identified System Mapper 10021 | -3/Research | Discovered new exit (range 16) 10032 | -3/Research | Incoming investigation squad redirected 10046 | -3/Research | Found Prototype Processor 10046 | -3/Research | Identified Exp. Target Analyzer 10151 | -3/Research | Identified exit to Testing 10401 | -3/Research | Spotted B-86 Titan 10496 | -3/Research | Found Fusion Bomb Launcher 10549 | -3/Research | Fabricated Cmb. Linear Gravjet (x2) 10622 | -3/Research | Entered Testing 10762 | -3/Testing | Found Prototype Launcher 10763 | -3/Testing | Identified Z-bomb Delivery System 11031 | -3/Testing | Incoming investigation squad redirected 11044 | -3/Testing | Identified exit to Research 11112 | -3/Testing | Fabricated Helical Railgun (x1) 11196 | -3/Testing | Found Prototype Hackware 11232 | -3/Testing | Entered Research 11232 | -2/Research | Warlord forces began assault on 0b10 11232 | -2/Research | Evolved 2 slots: Utility x2 11315 | -2/Research | Spotted B-90 Cyclops 11342 | -2/Research | Research machine network offline 11433 | -2/Research | Met up with Warlord 11528 | -2/Research | Lost 4 allies 11584 | -2/Research | Destroyed 13 combat bots 11770 | -2/Research | Discovered new exit (range 11) 12036 | -2/Research | Found Prototype Processor 12036 | -2/Research | Identified Exp. Core Analyzer 12232 | -2/Research | Warlord invited to help at Command 12232 | -2/Research | Given Cave Seal Controls access code 12233 | -2/Research | Spotted Executioner 12420 | -2/Research | Spotted Executioner 12420 | -2/Research | Spotted Striker 12425 | -2/Research | Spotted 61-WKN(L) 12455 | -2/Research | Discovered new exit (range 19) 12462 | -2/Research | Entered Access 12462 | -1/Access | Evolved 2 slots: Utility x2 12466 | -1/Access | Identified Ghost Barrier 12484 | -1/Access | Energy Cycler disabled 12610 | -1/Access | Garrison activated, responded to threat 12671 | -1/Access | Lost 11 parts (2p4n4u1w) 12672 | -1/Access | Spotted B-99 Colossus 12672 | -1/Access | Spotted B-99 Colossus 12747 | -1/Access | System corruption reached 10% 12773 | -1/Access | Identified exit to Command 12788 | -1/Access | Spotted B-99 Colossus 12888 | -1/Access | Core integrity fell below 50% 12909 | -1/Access | Discovered new exit (range 7) 12911 | *** | Escaped! Last Messages --------------- 12877_ Antigrav Array destroyed. 12878_ Q1FCTEHF 0WVU RDDDGLR%ZEXOWHAN4K B|SRN: 12878_ Slug penetrates Wall. 12878_ Penetrated by Slug. 12878_ Dropped Lrg. Storage Unit. 12878_ Penetrated by Slug. 12879_ Dropped Molecular Scythe. 12879_ Slug penetrates Wall. 12879_ Penetrated by Slug. 12885_ Hacking Suite destroyed. 12886_ Penetrated by Slug. 12887_ Slug penetrates Wall. 12888_ Penetrated by Slug. 12890_ Adv. Target Analyzer destroyed. 12891_ Exp. Core Analyzer destroyed. 12900_ System corrupted: Nanosword rejected. 12900_ Acquired Nanosword. 12907_ Connecting with Terminal... 12909_ The Access Shell folds into the floor. 12909_ EXIT=FOUND Map ----- +----------------------------------------------------+ | ?# # #?????????# #######% # | | ?# # #?????????######?????# # | | # # #????????????????????# # | | # # #????????????????????# # | | + # #????????????????????# # | | # + "" #????????????????????# # | | [= #### "" #????????????????????# # # #" | | ]= ????# "" #????????????????????# ## #### | | ????# S #????????????????????+ #######??? | | ?????# "" #????????????????????# #????????? | | ?????# "" #????????????????????# #????????? | | ########## "" #????????????????????# #????????? | | ## #????????????????????# #????????? | | ## ] #????????????????????# #????????? | | " #"#######????????????????????# #????????? | | "" "##??????????????????????????# #????????? | | """ ##???????????????????????????? #????????? | | " #????????????????????????????? #????????? | | #????????????????????????????? #????????? | | #????????????????????###?????# #????????? | | #???????????########## ####### #????????? | | #???????????" #????????? | | #???????????" u #????????? | | #"######## "??" u #????????? | | "??" u #????????? | | "??" "@ #????????? | | "??" "" #????????? | | "??" k #????????? | | ### ### "??" #????????? | | ??? #???? "??" """ """ #????????? | | #? #??????? "??" """T""" #????????? | | #? #????????????########## ####### #????????? | | +?? #?????????????????????###?????# #????????? | | #??? #?????????????????????????????# #?######## | | ###??? #?????????????????????????????# # | | ???????#?????????????????????????????# # | | ?????????????????????????????????????# + | | ???????????????????????############### # ! | | ??????????????????? # | | ??????????????????? #? "" "" | | ????????????????????????####### ###### #? ""R"" | | ?????????????????????????????????????# #?? """" | | ?????????????????????????????##+###### #??####### | | ?????????????????????????# + #???###### | | ?????????????????????????# ! # #?? | | ??????????##############?# # #?? [ = | | ??????????# !!! #?# ?# #? | | ??????????# !!! #?# ??# #? = | | ??????????# !! #?# ???# # | | ??????????# #?# ????# # | +----------------------------------------------------+ Best States ------------- Heat Dissipation 83 Energy Generation 45 Energy Capacity 600 Matter Stores 300 Matter Capacity 300 Sight Range 20 Robot Scan Range 16 Terrain Scan Range 16 Terrain Scan Density 10 Jamming Range 16 Armor Coverage 375 Resistance: EM 25 Propulsion Shielding 66 Phase Shifting 10 Evasion (%) 67 Targeting Accuracy 6 Melee Accuracy 6 Target Analysis 14 Core Analysis 8 Recoil Reduction 3 Offensive Hacking 46 Defensive Hacking 34 Item Schematics ----------------- Combat Drone Bay | -6/Data Miner | Free Lgt. Regenerative Plating | -6/Data Miner | Free Enh. Armored Leg | -6/Data Miner | Free Prc. Energy Filter | -6/Data Miner | Free Tesla Bomb Launcher | -6/Data Miner | Free Imp. Linear Gravjet | -6/Data Miner | Free Adv. Transmission Jammer | -6/Data Miner | Free HERF Cannon | -6/Data Miner | Free Antigrav System | -5/Factory | Hacked Gravmag Array | -4/Factory | Hacked Antigrav Array | -3/Research | Hacked Helical Railgun | -3/Testing | Hacked Robot Schematics ------------------ P-60 Hacker | -6/Data Miner | Free R-10 Processor | -6/Data Miner | Free G-50 Soldier | -6/Data Miner | Free H-66 Slayer | -6/Data Miner | Free B-60 Warrior | -6/Data Miner | Free G-67 Veteran | -6/Data Miner | Free A-15 Conveyor | -6/Data Miner | Free Fabricated ------------ Lgt. Regenerative Plating | x1 | -4/Factory Cmb. Linear Gravjet | x2 | -3/Research | Preloaded Helical Railgun | x1 | -3/Testing Repaired ---------- Adv. Sensor Array | 8% | -5/Factory Centrium Medium Armor Plating | 23% | -4/Factory Cmb. Gravmag System | 72% | -4/Factory Antigrav System | 27% | -4/Factory Antigrav System | 38% | -4/Factory | Broken Studied --------- Cmb. Linear Gravjet | -3/Testing | Hacked Alien Tech Used ----------------- None Achievements -------------- Hackathon Challenges ------------ None Game ------ Seed HardenedFactoryCompactor Manual? 0 Play Time 03:40:12 Cumulative 303.9 hours Start 2026.01.20 @ 15:22:36 End 2026.01.21 @ 12:41:32 Sessions 5 Manual Loads 0 Difficulty Rogue Special Mode None Game No. 193 Rogue 193 Adventurer 0 Explorer 0 Win Type 0 Total 7 Types 5/0/1/1/0/0/0/0/0/0 Lore% 41 Gallery% 61 Achievement% 41 Wizard Run 0 Options --------- Layout 2 ASCII 0 Keyboard 1 Movement Numpad Keybinds 0 Fullscreen 1 Font 32/SmallcapsGlow Map View 50x44 Zoom Use 0% Tactical HUD 1 Map Filters NONE Filters NONE Steam 1 RUN: 525647e9-75da-4de8-8652-c172fdfe8c89